[Event "Titled Tuesday Blitz March 29 Early 2022"]
[White "Derraugh, Geordie"]
[Black "Chernikov, Vladimir"]
[WhiteFideId "2603950"]
[BlackFideId "14112914"]
[WhiteElo "2116"]
[BlackElo "2061"]
[Result "1-0"]
[Round "04"]
[TimeControl "180+1"]
[Date "2022.03.30"]
[WhiteClock "0:02:25"]
[BlackClock "0:02:16"]

1. e4 {[%clk 0:03:00]}  d6 {[%clk 0:02:57]} 2. d4 {[%clk 0:02:59]}  Nf6 {[%clk 0:02:56]} 3. Nc3 {[%clk 0:02:59]}  Nbd7 {[%clk 0:02:55]} 4. Nf3 {[%clk 0:02:59]}  e5 {[%clk 0:02:55]} 5. h3 {[%clk 0:02:59]}  Be7 {[%clk 0:02:51]} 6. a4 {[%clk 0:02:57]}  c6 {[%clk 0:02:51]} 7. Bd3 {[%clk 0:02:57]}  Qc7 {[%clk 0:02:51]} 8. O-O {[%clk 0:02:57]}  O-O {[%clk 0:02:51]} 9. Bg5 {[%clk 0:02:56]}  Re8 {[%clk 0:02:50]} 10. Re1 {[%clk 0:02:55]}  h6 {[%clk 0:02:50]} 11. Bh4 {[%clk 0:02:54]}  exd4 {[%clk 0:02:47]} 12. Nxd4 {[%clk 0:02:50]}  Ne5 {[%clk 0:02:47]} 13. Bg3 {[%clk 0:02:47]}  Nxd3 {[%clk 0:02:46]} 14. cxd3 {[%clk 0:02:47]}  Bf8 {[%clk 0:02:45]} 15. a5 {[%clk 0:02:45]}  Bd7 {[%clk 0:02:42]} 16. Qb3 {[%clk 0:02:44]}  Rad8 {[%clk 0:02:36]} 17. Rec1 {[%clk 0:02:39]}  Qb8 {[%clk 0:02:33]} 18. a6 {[%clk 0:02:39]}  b5 {[%clk 0:02:31]} 19. Nce2 {[%clk 0:02:38]}  c5 {[%clk 0:02:30]} 20. Rxc5 {[%clk 0:02:37]}  Qb6 {[%clk 0:02:20]} 21. Rcc1 {[%clk 0:02:32]}  d5 {[%clk 0:02:16]} 22. Bc7 {[%clk 0:02:25]} 1-0


[Site "https://www.chess.com"]

[Event "Titled Tuesday Blitz March 29 Early 2022"]
[White "Di Nicolantonio, Lucas"]
[Black "Shuvalova, Polina"]
[WhiteFideId "680460"]
[BlackFideId "24171760"]
[WhiteElo "2519"]
[BlackElo "2697"]
[Result "0-1"]
[Round "04"]
[TimeControl "180+1"]
[Date "2022.03.30"]
[WhiteClock "0:00:02"]
[BlackClock "0:00:18"]

1. Nf3 {[%clk 0:03:00]}  Nf6 {[%clk 0:02:57]} 2. c4 {[%clk 0:03:00]}  e6 {[%clk 0:02:57]} 3. Nc3 {[%clk 0:03:01]}  d5 {[%clk 0:02:57]} 4. e3 {[%clk 0:03:01]}  c5 {[%clk 0:02:55]} 5. cxd5 {[%clk 0:03:02]}  exd5 {[%clk 0:02:55]} 6. d4 {[%clk 0:03:02]}  Nc6 {[%clk 0:02:54]} 7. Be2 {[%clk 0:03:03]}  cxd4 {[%clk 0:02:54]} 8. Nxd4 {[%clk 0:03:02]}  Bd6 {[%clk 0:02:54]} 9. O-O {[%clk 0:03:03]}  O-O {[%clk 0:02:53]} 10. b3 {[%clk 0:03:04]}  Qc7 {[%clk 0:02:51]} 11. Nf3 {[%clk 0:02:32]}  Ne5 {[%clk 0:02:32]} 12. Nb5 {[%clk 0:01:47]}  Nxf3+ {[%clk 0:02:27]} 13. Bxf3 {[%clk 0:01:47]}  Bxh2+ {[%clk 0:02:25]} 14. Kh1 {[%clk 0:01:48]}  Qb6 {[%clk 0:02:17]} 15. Kxh2 {[%clk 0:01:36]}  Qxb5 {[%clk 0:02:17]} 16. Bb2 {[%clk 0:01:32]}  Qb6 {[%clk 0:02:01]} 17. g3 {[%clk 0:01:16]}  Bf5 {[%clk 0:01:58]} 18. Bd4 {[%clk 0:01:03]}  Qe6 {[%clk 0:01:55]} 19. Rc1 {[%clk 0:00:56]}  Be4 {[%clk 0:01:51]} 20. Kg2 {[%clk 0:00:42]}  Rac8 {[%clk 0:01:42]} 21. Bxe4 {[%clk 0:00:36]}  Nxe4 {[%clk 0:01:39]} 22. Qh5 {[%clk 0:00:26]}  h6 {[%clk 0:01:33]} 23. Qe5 {[%clk 0:00:22]}  Qxe5 {[%clk 0:01:28]} 24. Bxe5 {[%clk 0:00:23]}  f6 {[%clk 0:01:23]} 25. Bd4 {[%clk 0:00:22]}  b6 {[%clk 0:01:22]} 26. Rfd1 {[%clk 0:00:22]}  Kf7 {[%clk 0:01:22]} 27. f3 {[%clk 0:00:19]}  Nd6 {[%clk 0:01:20]} 28. Bb2 {[%clk 0:00:18]}  Rxc1 {[%clk 0:01:18]} 29. Rxc1 {[%clk 0:00:17]}  Rc8 {[%clk 0:01:18]} 30. Rxc8 {[%clk 0:00:13]}  Nxc8 {[%clk 0:01:18]} 31. Kf2 {[%clk 0:00:14]}  Ke6 {[%clk 0:01:17]} 32. Ke2 {[%clk 0:00:14]}  Ne7 {[%clk 0:01:16]} 33. g4 {[%clk 0:00:13]}  g6 {[%clk 0:01:12]} 34. f4 {[%clk 0:00:12]}  h5 {[%clk 0:01:10]} 35. gxh5 {[%clk 0:00:11]}  gxh5 {[%clk 0:01:11]} 36. Kf3 {[%clk 0:00:12]}  Nf5 {[%clk 0:01:10]} 37. Bc3 {[%clk 0:00:11]}  Nd6 {[%clk 0:01:10]} 38. Bd4 {[%clk 0:00:10]}  Ne4 {[%clk 0:01:09]} 39. a4 {[%clk 0:00:09]}  Nd2+ {[%clk 0:01:07]} 40. Kg3 {[%clk 0:00:10]}  Nxb3 {[%clk 0:01:07]} 41. Bb2 {[%clk 0:00:10]}  Nc5 {[%clk 0:01:01]} 42. a5 {[%clk 0:00:10]}  Kf5 {[%clk 0:00:39]} 43. axb6 {[%clk 0:00:10]}  axb6 {[%clk 0:00:40]} 44. Kh4 {[%clk 0:00:08]}  Kg6 {[%clk 0:00:40]} 45. Bd4 {[%clk 0:00:08]}  Nd7 {[%clk 0:00:35]} 46. Kg3 {[%clk 0:00:07]}  b5 {[%clk 0:00:35]} 47. Bc3 {[%clk 0:00:07]}  Nb8 {[%clk 0:00:32]} 48. Kf3 {[%clk 0:00:05]}  Nc6 {[%clk 0:00:32]} 49. e4 {[%clk 0:00:05]}  d4 {[%clk 0:00:23]} 50. Bd2 {[%clk 0:00:05]}  b4 {[%clk 0:00:20]} 51. f5+ {[%clk 0:00:04]}  Kf7 {[%clk 0:00:19]} 52. Kg3 {[%clk 0:00:02]}  b3 {[%clk 0:00:18]} 53. Bc1 {[%clk 0:00:02]}  Na5 {[%clk 0:00:17]} 54. Kf3 {[%clk 0:00:02]}  Nc4 {[%clk 0:00:18]} 55. Ke2 {[%clk 0:00:02]}  b2 {[%clk 0:00:18]} 0-1


[Site "https://www.chess.com"]

[Event "Titled Tuesday Blitz March 29 Early 2022"]
[White "Dixit, Nikhil"]
[Black "Melikhov, Evgeny V."]
[WhiteFideId "5059534"]
[BlackFideId "4122046"]
[WhiteElo "2223"]
[BlackElo "1945"]
[Result "0-1"]
[Round "04"]
[TimeControl "180+1"]
[Date "2022.03.30"]
[WhiteClock "0:00:12"]
[BlackClock "0:00:27"]

1. Nf3 {[%clk 0:03:00]}  f5 {[%clk 0:02:59]} 2. b4 {[%clk 0:02:52]}  Nf6 {[%clk 0:02:58]} 3. Bb2 {[%clk 0:02:52]}  e6 {[%clk 0:02:57]} 4. h3 {[%clk 0:02:49]}  Be7 {[%clk 0:02:56]} 5. g4 {[%clk 0:02:48]}  O-O {[%clk 0:02:52]} 6. g5 {[%clk 0:02:37]}  Ne8 {[%clk 0:02:51]} 7. h4 {[%clk 0:02:35]}  d6 {[%clk 0:02:51]} 8. h5 {[%clk 0:02:29]}  e5 {[%clk 0:02:49]} 9. e3 {[%clk 0:02:24]}  Be6 {[%clk 0:02:44]} 10. d4 {[%clk 0:02:22]}  e4 {[%clk 0:02:44]} 11. Nfd2 {[%clk 0:02:22]}  d5 {[%clk 0:02:42]} 12. c4 {[%clk 0:02:17]}  c6 {[%clk 0:02:41]} 13. cxd5 {[%clk 0:02:13]}  cxd5 {[%clk 0:02:41]} 14. b5 {[%clk 0:02:11]}  Bxg5 {[%clk 0:02:33]} 15. Bh3 {[%clk 0:02:03]}  Nd7 {[%clk 0:02:21]} 16. Nc3 {[%clk 0:01:53]}  Rc8 {[%clk 0:02:12]} 17. Rc1 {[%clk 0:01:48]}  Nb6 {[%clk 0:02:03]} 18. Ba3 {[%clk 0:01:41]}  Be7 {[%clk 0:01:56]} 19. Bxe7 {[%clk 0:01:37]}  Qxe7 {[%clk 0:01:56]} 20. Qb3 {[%clk 0:01:37]}  Nc4 {[%clk 0:01:51]} 21. a4 {[%clk 0:01:37]}  Nxd2 {[%clk 0:01:49]} 22. Kxd2 {[%clk 0:01:36]}  Rc4 {[%clk 0:01:44]} 23. Bf1 {[%clk 0:01:11]}  Rb4 {[%clk 0:01:23]} 24. Nxd5 {[%clk 0:00:54]}  Rxb3 {[%clk 0:01:14]} 25. Nxe7+ {[%clk 0:00:54]}  Kf7 {[%clk 0:01:14]} 26. Nxf5 {[%clk 0:00:55]}  Bxf5 {[%clk 0:01:13]} 27. Bc4+ {[%clk 0:00:54]}  Be6 {[%clk 0:01:13]} 28. d5 {[%clk 0:00:52]}  Rb2+ {[%clk 0:01:11]} 29. Kc3 {[%clk 0:00:51]}  Rxf2 {[%clk 0:01:06]} 30. dxe6+ {[%clk 0:00:51]}  Ke7 {[%clk 0:01:06]} 31. Rhg1 {[%clk 0:00:47]}  R8f3 {[%clk 0:00:56]} 32. Rcd1 {[%clk 0:00:46]}  Rxe3+ {[%clk 0:00:54]} 33. Kb4 {[%clk 0:00:46]}  Rb2+ {[%clk 0:00:50]} 34. Kc5 {[%clk 0:00:38]}  b6+ {[%clk 0:00:42]} 35. Kc6 {[%clk 0:00:37]}  Rc3 {[%clk 0:00:43]} 36. Rd7+ {[%clk 0:00:34]}  Kf6 {[%clk 0:00:42]} 37. Rf7+ {[%clk 0:00:28]}  Ke5 {[%clk 0:00:41]} 38. Kd7 {[%clk 0:00:27]}  Rxc4 {[%clk 0:00:30]} 39. Kxe8 {[%clk 0:00:11]}  Kxe6 {[%clk 0:00:29]} 40. Rd7 {[%clk 0:00:10]}  Rc8+ {[%clk 0:00:28]} 41. Rd8 {[%clk 0:00:11]}  Rxd8+ {[%clk 0:00:28]} 42. Kxd8 {[%clk 0:00:12]}  e3 {[%clk 0:00:27]} 0-1


[Site "https://www.chess.com"]

[Event "Titled Tuesday Blitz March 29 Early 2022"]
[White "Dovbnia, Nikita"]
[Black "Czerw, Dawid"]
[WhiteFideId "54104599"]
[BlackFideId "1145746"]
[WhiteElo "2111"]
[BlackElo "2125"]
[Result "0-1"]
[Round "04"]
[TimeControl "180+1"]
[Date "2022.03.30"]
[WhiteClock "0:00:56"]
[BlackClock "0:01:16"]

1. d4 {[%clk 0:02:03]}  Nf6 {[%clk 0:02:59]} 2. c4 {[%clk 0:02:02]}  c5 {[%clk 0:02:58]} 3. Nf3 {[%clk 0:02:00]}  cxd4 {[%clk 0:02:55]} 4. Nxd4 {[%clk 0:02:00]}  Nc6 {[%clk 0:02:56]} 5. Nc3 {[%clk 0:01:57]}  g6 {[%clk 0:02:56]} 6. e4 {[%clk 0:01:56]}  d6 {[%clk 0:02:56]} 7. Be2 {[%clk 0:01:55]}  Nxd4 {[%clk 0:02:55]} 8. Qxd4 {[%clk 0:01:54]}  Bg7 {[%clk 0:02:56]} 9. Be3 {[%clk 0:01:54]}  O-O {[%clk 0:02:56]} 10. Qd3 {[%clk 0:01:54]}  Nd7 {[%clk 0:02:54]} 11. f3 {[%clk 0:01:36]}  Nc5 {[%clk 0:02:53]} 12. Qd2 {[%clk 0:01:36]}  a5 {[%clk 0:02:48]} 13. O-O {[%clk 0:01:35]}  a4 {[%clk 0:02:44]} 14. Rab1 {[%clk 0:01:35]}  Be6 {[%clk 0:02:29]} 15. b4 {[%clk 0:01:34]}  axb3 {[%clk 0:02:29]} 16. axb3 {[%clk 0:01:34]}  Ra3 {[%clk 0:02:23]} 17. Qc2 {[%clk 0:01:22]}  Qa8 {[%clk 0:01:43]} 18. Rf2 {[%clk 0:01:05]}  f5 {[%clk 0:01:37]} 19. Nd5 {[%clk 0:00:56]}  Bxd5 {[%clk 0:01:29]} 20. exd5 {[%clk 0:00:56]}  f4 {[%clk 0:01:16]} 0-1


[Site "https://www.chess.com"]

[Event "Titled Tuesday Blitz March 29 Early 2022"]
[White "Dushyant Sharma"]
[Black "Pajeken, Jakob Leon"]
[WhiteFideId "25065130"]
[BlackFideId "12942839"]
[WhiteElo "2105"]
[BlackElo "2351"]
[Result "1-0"]
[Round "04"]
[TimeControl "180+1"]
[Date "2022.03.30"]
[WhiteClock "0:01:53"]
[BlackClock "0:02:07"]

1. e4 {[%clk 0:03:00]}  e5 {[%clk 0:03:00]} 2. Nf3 {[%clk 0:03:00]}  Nc6 {[%clk 0:03:00]} 3. Nc3 {[%clk 0:03:01]}  Nf6 {[%clk 0:02:59]} 4. Bb5 {[%clk 0:03:01]}  Bd6 {[%clk 0:02:58]} 5. d3 {[%clk 0:03:01]}  a6 {[%clk 0:02:57]} 6. Ba4 {[%clk 0:02:59]}  O-O {[%clk 0:02:55]} 7. Bg5 {[%clk 0:02:59]}  h6 {[%clk 0:02:52]} 8. h4 {[%clk 0:02:58]}  hxg5 {[%clk 0:02:48]} 9. hxg5 {[%clk 0:02:57]}  Nh7 {[%clk 0:02:43]} 10. g6 {[%clk 0:02:58]}  fxg6 {[%clk 0:02:41]} 11. Bb3+ {[%clk 0:02:56]}  Kh8 {[%clk 0:02:40]} 12. Kd2 {[%clk 0:02:35]}  g5 {[%clk 0:02:37]} 13. Nxe5 {[%clk 0:02:28]}  Qf6 {[%clk 0:02:15]} 14. Qh5 {[%clk 0:01:55]}  Qh6 {[%clk 0:02:07]} 15. Ng6+ {[%clk 0:01:53]} 1-0


[Site "https://www.chess.com"]

[Event "Titled Tuesday Blitz March 29 Early 2022"]
[White "Einarsson, Halldor Gretar"]
[Black "Mangialardo, Tiago Carvalho"]
[WhiteFideId "2300150"]
[BlackFideId "2130718"]
[WhiteElo "2114"]
[BlackElo "2056"]
[Result "1-0"]
[Round "04"]
[TimeControl "180+1"]
[Date "2022.03.30"]
[WhiteClock "0:00:27"]
[BlackClock "0:00:08"]

1. d4 {[%clk 0:03:00]}  d5 {[%clk 0:02:15]} 2. Nf3 {[%clk 0:02:58]}  Nf6 {[%clk 0:02:10]} 3. g3 {[%clk 0:02:56]}  e6 {[%clk 0:02:10]} 4. c4 {[%clk 0:02:54]}  Be7 {[%clk 0:02:11]} 5. Bg2 {[%clk 0:02:53]}  O-O {[%clk 0:02:11]} 6. O-O {[%clk 0:02:52]}  Re8 {[%clk 0:02:11]} 7. Qc2 {[%clk 0:02:49]}  Nbd7 {[%clk 0:02:07]} 8. Nbd2 {[%clk 0:02:46]}  b6 {[%clk 0:01:59]} 9. e4 {[%clk 0:02:46]}  dxe4 {[%clk 0:01:56]} 10. Nxe4 {[%clk 0:02:44]}  Bb7 {[%clk 0:01:55]} 11. Nxf6+ {[%clk 0:02:14]}  Nxf6 {[%clk 0:01:45]} 12. Rd1 {[%clk 0:02:11]}  Qc8 {[%clk 0:01:34]} 13. b3 {[%clk 0:01:20]}  c5 {[%clk 0:01:28]} 14. Bb2 {[%clk 0:01:10]}  Qc7 {[%clk 0:01:21]} 15. d5 {[%clk 0:00:53]}  exd5 {[%clk 0:01:17]} 16. cxd5 {[%clk 0:00:52]}  Nxd5 {[%clk 0:00:57]} 17. h4 {[%clk 0:00:51]}  Bf6 {[%clk 0:00:51]} 18. Ng5 {[%clk 0:00:45]}  g6 {[%clk 0:00:42]} 19. Bxd5 {[%clk 0:00:42]}  Bxb2 {[%clk 0:00:37]} 20. Qxb2 {[%clk 0:00:42]}  Bxd5 {[%clk 0:00:33]} 21. Rxd5 {[%clk 0:00:41]}  Rad8 {[%clk 0:00:31]} 22. Rad1 {[%clk 0:00:41]}  Rxd5 {[%clk 0:00:30]} 23. Rxd5 {[%clk 0:00:41]}  Rd8 {[%clk 0:00:18]} 24. Qd2 {[%clk 0:00:40]}  Re8 {[%clk 0:00:16]} 25. Kh2 {[%clk 0:00:37]}  Qc6 {[%clk 0:00:13]} 26. Rd7 {[%clk 0:00:36]}  Rf8 {[%clk 0:00:11]} 27. Qd5 {[%clk 0:00:33]}  Qf6 {[%clk 0:00:10]} 28. f4 {[%clk 0:00:31]}  Qb2+ {[%clk 0:00:10]} 29. Kh3 {[%clk 0:00:30]}  Qf6 {[%clk 0:00:09]} 30. Ne4 {[%clk 0:00:29]}  Qg7 {[%clk 0:00:08]} 31. Qe5 {[%clk 0:00:28]}  Qh6 {[%clk 0:00:08]} 32. Nf6+ {[%clk 0:00:27]}  Kg7 {[%clk 0:00:08]} 33. Ng4+ {[%clk 0:00:27]} 1-0


[Site "https://www.chess.com"]

[Event "Titled Tuesday Blitz March 29 Early 2022"]
[White "Fedoseev, Vladimir"]
[Black "Priasmoro, Novendra"]
[WhiteFideId "24130737"]
[BlackFideId "7105029"]
[WhiteElo "2726"]
[BlackElo "2309"]
[Result "1-0"]
[Round "04"]
[TimeControl "180+1"]
[Date "2022.03.29"]
[WhiteClock "0:00:06"]
[BlackClock "0:00:08"]

1. e4 {[%clk 0:02:02]}  e5 {[%clk 0:02:47]} 2. Nf3 {[%clk 0:01:59]}  Nc6 {[%clk 0:02:48]} 3. Bb5 {[%clk 0:01:59]}  a6 {[%clk 0:02:47]} 4. Ba4 {[%clk 0:01:58]}  Nf6 {[%clk 0:02:47]} 5. O-O {[%clk 0:01:59]}  Nxe4 {[%clk 0:02:48]} 6. d4 {[%clk 0:01:58]}  b5 {[%clk 0:02:48]} 7. Bb3 {[%clk 0:01:59]}  d5 {[%clk 0:02:49]} 8. dxe5 {[%clk 0:02:00]}  Be6 {[%clk 0:02:49]} 9. c3 {[%clk 0:01:59]}  Bc5 {[%clk 0:02:49]} 10. Qe2 {[%clk 0:01:59]}  O-O {[%clk 0:02:48]} 11. Be3 {[%clk 0:01:59]}  f6 {[%clk 0:02:38]} 12. Nbd2 {[%clk 0:01:53]}  Nxd2 {[%clk 0:02:17]} 13. Qxd2 {[%clk 0:01:41]}  Bxe3 {[%clk 0:02:14]} 14. Qxe3 {[%clk 0:01:41]}  fxe5 {[%clk 0:02:14]} 15. Ng5 {[%clk 0:01:40]}  Bg4 {[%clk 0:01:45]} 16. h3 {[%clk 0:01:23]}  Bh5 {[%clk 0:01:41]} 17. Ne6 {[%clk 0:01:22]}  Qd6 {[%clk 0:01:40]} 18. Nxf8 {[%clk 0:01:16]}  Rxf8 {[%clk 0:01:41]} 19. Qg5 {[%clk 0:01:10]}  Bf7 {[%clk 0:01:39]} 20. Rfe1 {[%clk 0:01:07]}  Re8 {[%clk 0:01:39]} 21. Rad1 {[%clk 0:01:06]}  Na5 {[%clk 0:01:37]} 22. Bc2 {[%clk 0:01:02]}  Nc4 {[%clk 0:01:33]} 23. b3 {[%clk 0:01:01]}  Nb6 {[%clk 0:01:32]} 24. Re3 {[%clk 0:00:45]}  Nd7 {[%clk 0:01:24]} 25. Rg3 {[%clk 0:00:41]}  Qf6 {[%clk 0:01:24]} 26. Qd2 {[%clk 0:00:36]}  e4 {[%clk 0:01:18]} 27. c4 {[%clk 0:00:36]}  bxc4 {[%clk 0:01:17]} 28. bxc4 {[%clk 0:00:36]}  c6 {[%clk 0:01:17]} 29. cxd5 {[%clk 0:00:36]}  cxd5 {[%clk 0:01:16]} 30. Bb3 {[%clk 0:00:29]}  Nb6 {[%clk 0:01:15]} 31. Rc3 {[%clk 0:00:22]}  Rd8 {[%clk 0:01:11]} 32. Qd4 {[%clk 0:00:22]}  Qd6 {[%clk 0:00:59]} 33. Rdc1 {[%clk 0:00:21]}  Nd7 {[%clk 0:00:57]} 34. Rc6 {[%clk 0:00:20]}  Qe5 {[%clk 0:00:57]} 35. Qd2 {[%clk 0:00:17]}  h6 {[%clk 0:00:55]} 36. Rc8 {[%clk 0:00:17]}  Rxc8 {[%clk 0:00:55]} 37. Rxc8+ {[%clk 0:00:18]}  Kh7 {[%clk 0:00:56]} 38. Qc3 {[%clk 0:00:15]}  Qf5 {[%clk 0:00:51]} 39. Rc7 {[%clk 0:00:13]}  Ne5 {[%clk 0:00:50]} 40. Qg3 {[%clk 0:00:12]}  Qf6 {[%clk 0:00:33]} 41. Bc2 {[%clk 0:00:12]}  h5 {[%clk 0:00:30]} 42. f3 {[%clk 0:00:10]}  Bg6 {[%clk 0:00:30]} 43. Qf2 {[%clk 0:00:07]}  exf3 {[%clk 0:00:27]} 44. Bxg6+ {[%clk 0:00:07]}  Kxg6 {[%clk 0:00:27]} 45. Rc3 {[%clk 0:00:07]}  fxg2 {[%clk 0:00:21]} 46. Rg3+ {[%clk 0:00:07]}  Kf7 {[%clk 0:00:20]} 47. Qxg2 {[%clk 0:00:08]}  h4 {[%clk 0:00:18]} 48. Qxd5+ {[%clk 0:00:07]}  Kf8 {[%clk 0:00:17]} 49. Rg2 {[%clk 0:00:06]}  Nf3+ {[%clk 0:00:16]} 50. Kf1 {[%clk 0:00:06]}  Nd4+ {[%clk 0:00:08]} 51. Rf2 {[%clk 0:00:06]} 1-0


[Site "https://www.chess.com"]

[Event "Titled Tuesday Blitz March 29 Early 2022"]
[White "Fier, Alexandr"]
[Black "Jumabayev, Rinat"]
[WhiteFideId "2107139"]
[BlackFideId "13702661"]
[WhiteElo "2571"]
[BlackElo "2561"]
[Result "0-1"]
[Round "04"]
[TimeControl "180+1"]
[Date "2022.03.29"]
[WhiteClock "0:01:02"]
[BlackClock "0:00:34"]

1. d4 {[%clk 0:03:00]}  e6 {[%clk 0:02:59]} 2. c4 {[%clk 0:02:59]}  d5 {[%clk 0:03:00]} 3. Nc3 {[%clk 0:02:59]}  Nf6 {[%clk 0:03:00]} 4. Nf3 {[%clk 0:03:00]}  Nbd7 {[%clk 0:02:58]} 5. cxd5 {[%clk 0:02:58]}  exd5 {[%clk 0:02:59]} 6. Bf4 {[%clk 0:02:58]}  c6 {[%clk 0:02:54]} 7. Rc1 {[%clk 0:02:57]}  Bb4 {[%clk 0:02:43]} 8. e3 {[%clk 0:02:48]}  Ne4 {[%clk 0:02:37]} 9. Nd2 {[%clk 0:02:47]}  Ndf6 {[%clk 0:02:09]} 10. Bd3 {[%clk 0:02:46]}  Bf5 {[%clk 0:02:04]} 11. Ndxe4 {[%clk 0:02:43]}  Bxe4 {[%clk 0:02:03]} 12. O-O {[%clk 0:02:42]}  Bxd3 {[%clk 0:02:02]} 13. Qxd3 {[%clk 0:02:43]}  O-O {[%clk 0:02:00]} 14. Bg5 {[%clk 0:02:43]}  Re8 {[%clk 0:01:39]} 15. a3 {[%clk 0:02:42]}  Be7 {[%clk 0:01:39]} 16. Bxf6 {[%clk 0:02:41]}  Bxf6 {[%clk 0:01:39]} 17. b4 {[%clk 0:02:42]}  a6 {[%clk 0:01:39]} 18. a4 {[%clk 0:02:42]}  b5 {[%clk 0:01:33]} 19. a5 {[%clk 0:02:34]}  Re6 {[%clk 0:01:31]} 20. Ne2 {[%clk 0:02:30]}  Be7 {[%clk 0:01:28]} 21. Qc3 {[%clk 0:02:21]}  Bd6 {[%clk 0:01:27]} 22. g3 {[%clk 0:02:21]}  Rc8 {[%clk 0:01:26]} 23. Rc2 {[%clk 0:02:20]}  Qe7 {[%clk 0:01:21]} 24. Rb1 {[%clk 0:02:19]}  h5 {[%clk 0:01:21]} 25. h4 {[%clk 0:02:04]}  g5 {[%clk 0:01:14]} 26. hxg5 {[%clk 0:02:04]}  Qxg5 {[%clk 0:01:15]} 27. Kf1 {[%clk 0:01:57]}  h4 {[%clk 0:01:13]} 28. gxh4 {[%clk 0:01:32]}  Qxh4 {[%clk 0:01:12]} 29. Ng1 {[%clk 0:01:32]}  Rg6 {[%clk 0:00:57]} 30. Ke2 {[%clk 0:01:24]}  Rg2 {[%clk 0:00:51]} 31. Qe1 {[%clk 0:01:09]}  Bg3 {[%clk 0:00:41]} 32. Kd3 {[%clk 0:01:06]}  Bxf2 {[%clk 0:00:37]} 33. Qf1 {[%clk 0:01:07]}  Qe4+ {[%clk 0:00:36]} 34. Kc3 {[%clk 0:01:06]}  Be1+ {[%clk 0:00:35]} 35. Rxe1 {[%clk 0:01:02]}  Qxc2# {[%clk 0:00:34]} 0-1


[Site "https://www.chess.com"]

[Event "Titled Tuesday Blitz March 29 Early 2022"]
[White "Fromm, Marius"]
[Black "Krysa, Leandro"]
[WhiteFideId "12993190"]
[BlackFideId "116807"]
[WhiteElo "2424"]
[BlackElo "2490"]
[Result "1-0"]
[Round "04"]
[TimeControl "180+1"]
[Date "2022.03.30"]
[WhiteClock "0:00:15"]
[BlackClock "0:00:05"]

1. e4 {[%clk 0:03:00]}  e5 {[%clk 0:02:59]} 2. Nf3 {[%clk 0:03:00]}  Nf6 {[%clk 0:02:58]} 3. Nxe5 {[%clk 0:03:00]}  d6 {[%clk 0:02:58]} 4. Nf3 {[%clk 0:03:01]}  Nxe4 {[%clk 0:02:57]} 5. d4 {[%clk 0:03:01]}  d5 {[%clk 0:02:55]} 6. Bd3 {[%clk 0:03:01]}  Nc6 {[%clk 0:02:53]} 7. Nbd2 {[%clk 0:02:55]}  Nd6 {[%clk 0:02:41]} 8. O-O {[%clk 0:02:52]}  Be7 {[%clk 0:02:41]} 9. Re1 {[%clk 0:02:51]}  O-O {[%clk 0:02:39]} 10. Nf1 {[%clk 0:02:47]}  Nb4 {[%clk 0:02:28]} 11. Be2 {[%clk 0:02:42]}  c6 {[%clk 0:02:25]} 12. c3 {[%clk 0:02:40]}  Na6 {[%clk 0:02:25]} 13. Ng3 {[%clk 0:02:33]}  Nc7 {[%clk 0:02:18]} 14. Bd3 {[%clk 0:02:32]}  Re8 {[%clk 0:02:12]} 15. Bf4 {[%clk 0:02:29]}  Ne6 {[%clk 0:02:08]} 16. Bd2 {[%clk 0:02:18]}  g6 {[%clk 0:02:04]} 17. Ne5 {[%clk 0:02:15]}  Ng7 {[%clk 0:02:02]} 18. Qf3 {[%clk 0:01:48]}  Ngf5 {[%clk 0:01:35]} 19. a4 {[%clk 0:01:25]}  a5 {[%clk 0:01:26]} 20. Re2 {[%clk 0:01:12]}  Be6 {[%clk 0:01:14]} 21. Rae1 {[%clk 0:01:10]}  Bf8 {[%clk 0:00:49]} 22. Ng4 {[%clk 0:00:54]}  h5 {[%clk 0:00:24]} 23. Ne5 {[%clk 0:00:21]}  Bg7 {[%clk 0:00:19]} 24. Nxf5 {[%clk 0:00:19]}  Bxf5 {[%clk 0:00:17]} 25. Bxf5 {[%clk 0:00:15]}  Nxf5 {[%clk 0:00:18]} 26. Nxc6 {[%clk 0:00:12]}  Rxe2 {[%clk 0:00:16]} 27. Nxd8 {[%clk 0:00:12]}  Rxe1+ {[%clk 0:00:14]} 28. Bxe1 {[%clk 0:00:13]}  Rxd8 {[%clk 0:00:14]} 29. Bd2 {[%clk 0:00:14]}  Bf6 {[%clk 0:00:11]} 30. h3 {[%clk 0:00:14]}  Kg7 {[%clk 0:00:12]} 31. g4 {[%clk 0:00:14]}  hxg4 {[%clk 0:00:11]} 32. hxg4 {[%clk 0:00:15]}  Nh4 {[%clk 0:00:10]} 33. Bh6+ {[%clk 0:00:15]}  Kxh6 {[%clk 0:00:04]} 34. Qxf6 {[%clk 0:00:16]}  Nf3+ {[%clk 0:00:03]} 35. Qxf3 {[%clk 0:00:15]}  Re8 {[%clk 0:00:03]} 36. Kg2 {[%clk 0:00:15]}  Kg7 {[%clk 0:00:02]} 37. Qxd5 {[%clk 0:00:15]}  Re2 {[%clk 0:00:03]} 38. Qxb7 {[%clk 0:00:14]}  Rc2 {[%clk 0:00:03]} 39. d5 {[%clk 0:00:15]}  g5 {[%clk 0:00:04]} 40. d6 {[%clk 0:00:15]}  Rd2 {[%clk 0:00:04]} 41. d7 {[%clk 0:00:16]}  Kf6 {[%clk 0:00:05]} 42. Qb6+ {[%clk 0:00:15]}  Ke7 {[%clk 0:00:05]} 43. Qe3+ {[%clk 0:00:15]} 1-0


[Site "https://www.chess.com"]